[Event "44th Chess Olympiad Open 2022"]
[Site "Chennai"]
[Date "2022.08.09"]
[Round "11.6"]
[White "Ivanisevic, Ivan"]
[Black "Durarbayli, Vasif"]
[Result "1/2-1/2"]
[ECO "A62"]
[WhiteElo "2561"]
[BlackElo "2638"]
[Annotator "TA"]
[PlyCount "91"]
[EventDate "2022.07.29"]
[EventType "team-tourn"]
[EventCountry "IND"]
[SourceTitle "playchess.com"]
[Source "ChessBase"]
[SourceQuality "1"]
[WhiteTeam "Serbia"]
[BlackTeam "Azerbaijan"]
[WhiteTeamCountry "SRB"]
[BlackTeamCountry "AZE"]
[TimeControl "40/5400+30:1800+30"]

{[%evp 18,91,24,9,16,1,45,8,10,0,33,29,12,8,68,0,23,21,18,19,27,20,25,9,17,0,0,0,0,-6,40,-50,22,33,27,-85,0,0,0,-37,-28,-8,0,-30,0,0,0,-315,-326,-314,-292,-259,-85,-89,-80,-80,-81,-95,-89,-81,-4,-7,-7,-7,-8,-8,-8,-8,0,0,0,0,0,-8,0,-12]} 1. d4 {[%emt 0:00:05]} Nf6 {[%emt 0:01:47]} 2. c4 {[%emt 0:00:09]} e6 {[%emt 0:00:03]} 3. g3 {[%emt 0:00:06]} c5 {[%emt 0:01:06]} 4. d5 {[%emt 0:00:07]} exd5 {[%emt 0:00:11]} 5. cxd5 {[%emt 0:00:08]} d6 {[%emt 0:00:06]} 6. Nc3 {[%emt 0:00:06]} g6 {[%emt 0:00:02]} 7. Bg2 {[%emt 0:00:06]} Bg7 {[%emt 0:00:04]} 8. Nf3 {[%emt 0:00:06]} O-O {[%emt 0:00:06]} 9. O-O {[%emt 0:00:05]} Re8 {[%emt 0:00:46]} 10. Re1 {[%emt 0:00:08]} Nbd7 {[%emt 0:02:00] A62: Modern Benoni: Fianchetto Variation without early ...Nbd7.} 11. e4 {[%emt 0:02:23]} Ng4 {[%emt 0:00:38]} 12. Nd2 {[%emt 0:00:59] [#]} (12. Nh4 $5 {[%cal Rd1g4]} Nge5 13. Bf1 $11) 12... Nde5 $146 {[%emt 0:07:38]} ({Predecessor:} 12... Nge5 13. Bf1 g5 14. a4 Nf6 15. Ra3 Bg4 16. f3 Bd7 17. Nc4 Nxc4 18. Bxc4 h6 {½-½ (38) Kozusek,D (2315)-Camacho Collados,J (2414) Cardiff 2022}) 13. h3 {[%emt 0:09:10]} Nf6 {[%emt 0:02:58]} 14. Bf1 {[%emt 0:00:19]} c4 {[%emt 0:06:54]} 15. a4 {[%emt 0:08:15][%cal Ba2a4,Ba4a5][%mdl 32]} h5 {[%emt 0:14:53]} (15... Qa5 $11) 16. Ra3 {[%emt 0:03:02]} (16. Qe2 $1 $14) 16... a6 {[%emt 0:04:13][%cal Oh5h4]} 17. a5 {[%emt 0:12:04]} Qc7 {[%emt 0:05:27]} 18. Nf3 {[%emt 0:18:06]} Nfd7 {[%emt 0:00:42]} 19. Nxe5 {[%emt 0:00:42]} Nxe5 {[%emt 0:00:05]} 20. Be3 {[%emt 0:02:23] Inhibits b6.} f5 {[%emt 0:02:29]} 21. Bb6 {[%emt 0:10:22]} Qf7 {[%emt 0:00:44]} 22. f4 {[%emt 0:12:46]} Nd3 {[%emt 0:00:21]} 23. Re3 {[%emt 0:00:07]} Nxb2 {[%emt 0:05:33]} (23... Bd7 $11) 24. Qe1 {[%emt 0:00:33]} (24. Qd2 $14 Nd3 25. Ra4 Bxc3 26. Qxc3 fxe4 27. Rxc4) 24... fxe4 {[%emt 0:14:47]} ({Black should try} 24... Nd3 $1 $15 25. Bxd3 cxd3) 25. Nxe4 $11 {[%emt 0:00:41]} Bd7 {[%emt 0:01:19]} 26. Ng5 {[%emt 0:02:56]} (26. Qd2 $1 $11) 26... Qxd5 {[%emt 0:06:09]} (26... Qf6 $1 $17 {[%cal Oc4c3]} 27. Qb4 Qf5) 27. Bg2 {[%emt 0:02:43]} Qf5 {[%emt 0:00:05] Hoping for ...Nd3.} 28. Be4 {[%emt 0:05:22] [#] Against Nd3} Rxe4 {[%emt 0:00:15]} 29. Rxe4 {[%emt 0:00:05] aiming for Re7.} Nd3 $36 {[%emt 0:05:20][%mdl 2048] Black is more active.} 30. Qe3 {[%emt 0:01:27]} Qb5 {[%emt 0:01:31]} 31. Re7 {[%emt 0:05:23][%cal Oe7g7] Black must now prevent Rxg7+! Chess con chili.} Re8 {[%emt 0:03:08]} 32. Rxg7+ $2 {[%emt 0:03:59][%mdl 8192]} Kxg7 $19 {[%emt 0:00:08]} 33. Qd4+ {[%emt 0:00:04] [#]} Kg8 $1 {[%emt 0:00:33] ( -> ...Qb1+)} (33... Kh6 34. Ra1 Qb2 35. Nf7+ Kh7 36. Ng5+ Kg8 37. Qxc4+ Be6 38. Qa4 $17) 34. Ra1 {[%emt 0:00:06] [#] Inhibits Qb1+.} (34. Qf6 {gets mated.} Qb1+ 35. Kg2 Re2+ 36. Kf3 Qf1+) 34... Qb2 $2 {[%emt 0:10:38]} (34... Re2 $1 $19 {and Black stays clearly on top. ...Qc6 is the strong threat.} 35. Ne4 (35. Qf6 $2 Qf5 $19) 35... Bf5 36. Nxd6 (36. Nc3 $2 Qc6 $19) 36... Qc6 37. Qxc4+ Qxc4 38. Nxc4 Bxh3) 35. Qxc4+ $17 {[%emt 0:00:40] [#]} Be6 $1 {[%emt 0:00:04]} 36. Qd4 {[%emt 0:00:22]} Qxd4+ {[%emt 0:00:51]} 37. Bxd4 {[%emt 0:00:02]} Bd5 {[%emt 0:00:12][%cal Oh5h4]} 38. Rd1 {[%emt 0:00:26]} Re1+ {[%emt 0:00:58]} ({Better is} 38... Bc4 $17) 39. Rxe1 $11 {[%emt 0:00:05] The position is equal.} Nxe1 {[%emt 0:00:03][%mdl 4096] Endgame KBN-KBN} 40. Kf2 {[%emt 0:00:35]} Nd3+ {[%emt 0:02:27]} 41. Ke3 {[%emt 0:30:31]} Nb4 {[%emt 0:30:23]} 42. Bc3 {[%emt 0:03:05]} Nc6 {[%emt 0:02:47]} 43. g4 {[%emt 0:00:00]} Ne7 {[%emt 0:00:00]} 44. Bb4 {[%emt 0:00:00]} Nc6 {[%emt 0:00:00]} 45. Bc3 {[%emt 0:00:00]} Ne7 {[%emt 0:00:00]} 46. Bb4 {[%emt 0:00:00] White happily takes the draw.  Weighted Error Value: White=0.29 (precise) /Black=0.23 (precise)} 1/2-1/2

[Event "44th Chess Olympiad Open 2022"]
[Site "Chennai"]
[Date "2022.08.09"]
[Round "11.7"]
[White "Piorun, Kacper"]
[Black "Can, Emre"]
[Result "1-0"]
[ECO "D05"]
[WhiteElo "2636"]
[BlackElo "2606"]
[Annotator "TA"]
[PlyCount "199"]
[EventDate "2022.07.29"]
[EventType "team-tourn"]
[EventCountry "IND"]
[SourceTitle "playchess.com"]
[Source "ChessBase"]
[SourceQuality "1"]
[WhiteTeam "Poland"]
[BlackTeam "Turkey"]
[WhiteTeamCountry "POL"]
[BlackTeamCountry "TUR"]
[TimeControl "40/5400+30:1800+30"]

{[%evp 30,199,4,0,0,0,4,0,0,0,0,-5,0,-24,-17,-32,-18,-31,-4,-41,0,-20,0,0,0,0,0,0,0,0,24,14,28,0,187,185,174,176,251,239,227,93,202,203,217,208,210,199,195,156,263,239,287,192,192,184,184,183,187,193,250,252,369,340,369,364,386,389,389,374,331,33,40,40,55,55,80,80,80,0,0,0,0,0,0,0,0,0,0,0,0,0,0,0,0,0,0,0,0,0,0,0,0,0,0,0,0,0,0,0,0,0,0,0,0,0,0,0,0,0,0,0,0,0,0,0,0,0,0,0,0,0,0,0,0,0,55,0,0,0,0,0,0,0,0,0,0,0,1299,1114,802,446,1177,419,12833,12831,12842,12835,12835,12835,1125,924,12845,12842,12842,12843,12844,12844,12846,12847,12849,12850]} 1. d4 {[%emt 0:00:06]} d5 {[%emt 0:00:13]} 2. Nf3 {[%emt 0:00:11]} Nf6 {[%emt 0:00:45]} 3. e3 {[%emt 0:00:18]} e6 {[%emt 0:01:48]} 4. Bd3 {[%emt 0:00:10]} b6 {[%emt 0:01:23]} 5. b3 {[%emt 0:01:19]} Bb7 {[%emt 0:01:47]} 6. Bb2 {[%emt 0:00:12]} Bd6 {[%emt 0:00:38]} 7. O-O {[%emt 0:00:11]} Nbd7 {[%emt 0:03:18]} 8. Ne5 {[%emt 0:05:23]} O-O {[%emt 0:02:57]} 9. Qe2 {[%emt 0:01:49]} a6 {[%emt 0:04:01]} 10. c4 {[%emt 0:07:42]} Qe7 {[%emt 0:06:27]} 11. Rd1 {[%emt 0:08:05]} Rfd8 {[%emt 0:02:42]} 12. Nd2 {[%emt 0:03:05]} Ne4 {[%emt 0:04:56]} 13. Nxd7 {[%emt 0:05:39]} Rxd7 {[%emt 0:01:44]} 14. Nf3 {[%emt 0:00:45]} Rdd8 {[%emt 0:15:02]} 15. Rac1 {[%emt 0:04:22]} dxc4 {[%emt 0:03:08]} 16. Bxc4 {[%emt 0:01:47]} c5 {[%emt 0:03:46]} (16... b5 $5 17. Bd3 c5 $11) 17. Bd3 {[%emt 0:05:38]} b5 {[%emt 0:03:00]} 18. a4 {[%emt 0:06:30]} bxa4 {[%emt 0:02:19]} 19. bxa4 {[%emt 0:00:16]} cxd4 {[%emt 0:04:11]} 20. Nxd4 {[%emt 0:04:52]} Nc5 {[%emt 0:00:11]} 21. Qg4 {[%emt 0:04:31]} g6 {[%emt 0:02:08]} 22. Bc2 {[%emt 0:03:35]} Rac8 {[%emt 0:06:23]} 23. Ba1 {[%emt 0:06:52]} Nd7 {[%emt 0:05:37]} 24. Bb3 {[%emt 0:02:19]} Nf6 {[%emt 0:03:14]} 25. Qg5 {[%emt 0:02:10]} Rxc1 {[%emt 0:04:36]} 26. Rxc1 {[%emt 0:00:07]} Nd5 {[%emt 0:00:20]} 27. Qh6 {[%emt 0:03:33]} Qf8 {[%emt 0:01:35]} 28. Qh3 {[%emt 0:01:47]} Qe7 {[%emt 0:03:04]} 29. Nf3 {[%emt 0:03:12]} Nb4 {[%emt 0:03:32]} 30. Qh6 {[%emt 0:01:10]} Qf8 $1 {[%emt 0:00:06]} 31. Qg5 {[%emt 0:00:13]} h6 $2 {[%emt 0:04:30]} (31... Bd5 $1 $11 {and Black stays safe.} 32. Bxd5 Nxd5) 32. Qf6 $18 {[%emt 0:02:24]} Kh7 {[%emt 0:00:07]} 33. Ne5 $1 {[%emt 0:02:00]} Bxe5 {[%emt 0:03:17]} (33... Be7 $142 34. Qxf7+ Qxf7 35. Nxf7 Rc8 36. Rxc8 Bxc8) 34. Bxe5 $18 {[%emt 0:00:07]} Rc8 {[%emt 0:01:05]} 35. Rd1 {[%emt 0:05:53]} (35. Rxc8 $18 {and the rest is easy. White wants to mate with Qh8+.} Bxc8 36. Bd6 $1 {[%mdl 512]} Qxd6 37. Qxf7+ Kh8 38. Qe8+ (38. Qxg6 Qe5 $11) 38... Kg7 39. Qxc8) 35... Bd5 {[%emt 0:00:25]} (35... Nd5 $16 36. Bxd5 Bxd5) 36. h4 $18 {[%emt 0:01:30]} ({Not} 36. Bxd5 Nxd5 37. Qf3 Qe7 $14) 36... Nc6 {[%emt 0:01:56]} (36... Bxb3 {leads to mate.} 37. Rd7 Rc1+ 38. Kh2) 37. Bxd5 {[%emt 0:02:26]} Nxe5 {[%emt 0:00:07]} 38. Qxe5 {[%emt 0:04:41]} exd5 {[%emt 0:00:06]} 39. h5 {[%emt 0:00:06]} ({Don't play} 39. Rxd5 Rd8 40. h5 Rxd5 41. Qxd5 Qg7 42. hxg6+ Qxg6 $16) 39... g5 {[%emt 0:01:27]} (39... Qg7 $16 {was worth a try.} 40. Qxd5 Qf6 41. hxg6+ Qxg6) 40. Rxd5 {[%emt 0:00:31]} Rd8 {[%emt 0:01:08]} 41. Qe4+ {[%emt 0:10:04]} Kg8 {[%emt 0:00:23]} 42. Re5 {[%emt 0:00:12]} Qd6 {[%emt 0:02:04]} 43. g4 {[%emt 0:01:34]} Kg7 {[%emt 0:05:40]} 44. Kg2 {[%emt 0:03:54]} Rb8 {[%emt 0:00:21]} (44... Kg8 $142 45. Re7 Kg7 46. Qe5+ Qxe5 47. Rxe5 Rc8) 45. Rd5 $18 {[%emt 0:01:58]} Qf6 {[%emt 0:01:42]} (45... Rb4 $142) 46. Qc4 {[%emt 0:00:27]} Rb6 {[%emt 0:02:31]} 47. a5 {[%emt 0:04:53]} Rc6 {[%emt 0:01:02]} 48. Qe4 {[%emt 0:00:54]} Re6 {[%emt 0:01:23]} 49. Qd3 {[%emt 0:01:47]} Rc6 {[%emt 0:00:44]} 50. Rd8 $2 {[%emt 0:02:29]} (50. Rf5 $18 Qc3 51. Qd5) 50... Rc2 $1 $14 {[%emt 0:05:26]} 51. Qxc2 {[%emt 0:00:08]} Qxd8 {[%emt 0:00:04]} 52. Qc5 {[%emt 0:00:14]} Qa8+ {[%emt 0:01:14]} 53. f3 {[%emt 0:01:11]} Kg8 {[%emt 0:04:10]} 54. Kf2 {[%emt 0:00:37]} (54. Qd6 $16) 54... Qb8 $11 {[%emt 0:00:33]} 55. Ke2 {[%emt 0:00:31]} Qb2+ {[%emt 0:02:07]} 56. Kd3 {[%emt 0:00:02]} Qb3+ {[%emt 0:00:21]} 57. Ke4 {[%emt 0:00:24]} Qe6+ {[%emt 0:00:24]} 58. Qe5 {[%emt 0:01:59]} Qc4+ {[%emt 0:01:25]} 59. Qd4 {[%emt 0:00:46]} Qe6+ {[%emt 0:00:09]} 60. Kd3 {[%emt 0:02:00]} Qb3+ {[%emt 0:00:13]} 61. Qc3 {[%emt 0:00:12]} Qd5+ {[%emt 0:00:11]} 62. Ke2 {[%emt 0:00:05]} Qa2+ {[%emt 0:00:42]} 63. Qd2 {[%emt 0:00:01]} Qc4+ {[%emt 0:00:21]} 64. Kf2 {[%emt 0:00:00]} Qc7 {[%emt 0:01:06]} 65. Kg2 {[%emt 0:00:46]} Qc6 {[%emt 0:02:50]} 66. Qd8+ {[%emt 0:00:13]} Kg7 {[%emt 0:00:24]} 67. Qd3 {[%emt 0:00:53]} Qc1 {[%emt 0:02:08]} 68. Qd4+ {[%emt 0:01:41]} Kg8 {[%emt 0:00:10]} 69. Qd8+ {[%emt 0:00:04]} Kg7 {[%emt 0:00:09]} 70. Kf2 {[%emt 0:00:03]} Qc2+ {[%emt 0:00:22]} 71. Ke1 {[%emt 0:00:04]} Qc1+ {[%emt 0:01:02]} 72. Ke2 {[%emt 0:00:01]} Qc2+ {[%emt 0:00:15]} 73. Qd2 {[%emt 0:00:02]} Qc4+ {[%emt 0:00:15]} 74. Ke1 {[%emt 0:00:03]} Qc6 {[%emt 0:00:55]} 75. Kf2 {[%emt 0:00:55]} Qc7 $1 {[%emt 0:01:27]} 76. f4 {[%emt 0:01:27]} gxf4 {[%emt 0:00:54]} 77. exf4 {[%emt 0:00:04]} Qc5+ {[%emt 0:00:20]} 78. Kf3 {[%emt 0:00:05]} Qc6+ {[%emt 0:00:53]} 79. Kg3 {[%emt 0:00:11]} Qe4 {[%emt 0:01:24]} 80. Qb2+ {[%emt 0:00:45]} Kh7 {[%emt 0:00:29]} 81. Qc3 {[%emt 0:04:05]} Qb1 {[%emt 0:00:45]} 82. Qc4 {[%emt 0:01:37]} Qb7 {[%emt 0:00:58]} (82... Qg1+ $11 83. Kf3 Qh1+ 84. Kf2 Qh4+ 85. Kf1 Qh1+ 86. Kf2 Qh4+ 87. Kf3 Qh1+ 88. Kf2) 83. g5 {[%emt 0:00:50]} (83. Qd3+ $14 Kg8 84. g5) 83... hxg5 $1 $11 {[%emt 0:00:39]} 84. fxg5 {[%emt 0:00:06]} Qe7 $1 {[%emt 0:00:16]} 85. Kf4 {[%emt 0:00:53]} Qd6+ {[%emt 0:00:59]} 86. Kf5 {[%emt 0:01:06]} Qd7+ {[%emt 0:00:08]} 87. Ke5 {[%emt 0:01:22]} Qe7+ {[%emt 0:00:23]} 88. Kd4 {[%emt 0:01:07]} Qd6+ $2 {[%emt 0:00:23][%mdl 8192] [#]} (88... Kg8 $11) 89. Qd5 $1 $18 {[%emt 0:00:04]} Qb4+ {[%emt 0:00:11]} 90. Ke5 {[%emt 0:00:09]} Qb8+ {[%emt 0:01:19]} 91. Ke4 {[%emt 0:01:22]} (91. Qd6 $142 Qb2+ 92. Kf5 Qf2+ 93. Qf4) 91... Qe8+ {[%emt 0:00:47]} (91... Kg8 $142 92. g6 Qb1+ 93. Ke5 Qb8+ 94. Kf5 Qc8+ 95. Kf4 Qc1+ 96. Ke5 Qc7+ 97. Ke4 Qc2+ 98. Kf3 Kg7 99. Qxf7+ Kh6 100. Qf8+ Kxh5) 92. Kf3 {[%emt 0:00:10]} Kh8 {[%emt 0:00:54]} 93. Qd4+ {[%emt 0:01:41]} Kg8 {[%emt 0:00:02] [#]} 94. h6 $1 {[%emt 0:00:33]} Qc6+ {[%emt 0:00:08]} 95. Kg3 {[%emt 0:00:18]} Qg6 {[%emt 0:00:07]} 96. Kh4 {[%emt 0:00:26]} Kh7 {[%emt 0:00:13]} 97. Qe5 {[%emt 0:00:14]} Kg8 {[%emt 0:00:33]} 98. Kg4 {[%emt 0:00:22]} Kf8 {[%emt 0:00:40]} 99. Qh8+ {[%emt 0:00:14]} Ke7 {[%emt 0:00:06]} 100. Qf6+ {[%emt 0:00:07]} 1-0

[Event "44th Chess Olympiad Open 2022"]
[Site "Chennai"]
[Date "2022.08.09"]
[Round "11.7"]
[White "Yilmaz, Mustafa"]
[Black "Wojtaszek, Radoslaw"]
[Result "1/2-1/2"]
[ECO "D38"]
[WhiteElo "2634"]
[BlackElo "2708"]
[Annotator "TA"]
[PlyCount "116"]
[EventDate "2022.07.29"]
[EventType "team-tourn"]
[EventCountry "IND"]
[SourceTitle "playchess.com"]
[Source "ChessBase"]
[SourceQuality "1"]
[WhiteTeam "Turkey"]
[BlackTeam "Poland"]
[WhiteTeamCountry "TUR"]
[BlackTeamCountry "POL"]
[TimeControl "40/5400+30:1800+30"]

{[%evp 14,116,16,19,6,10,37,8,10,9,15,12,12,7,6,-26,0,0,0,0,2,3,11,12,10,10,12,8,15,0,8,0,10,2,3,9,57,12,10,8,12,11,10,0,0,0,0,0,0,0,0,-7,-6,-7,-9,-4,-3,-10,5,-16,-16,-17,-17,-43,-37,-70,-20,-18,-18,-58,-58,-80,-80,-80,-80,-95,-58,-58,-59,-80,-80,-80,-80,-80,-80,-80,-58,-58,0,-80,0,-3,0,-80,-80,-80,-80,-80,-65,-80,-80,-80,0,-80,0]} 1. d4 {[%emt 0:00:03]} Nf6 {[%emt 0:00:11]} 2. c4 {[%emt 0:00:06]} e6 {[%emt 0:00:02]} 3. Nf3 {[%emt 0:00:05]} d5 {[%emt 0:00:04]} 4. Nc3 {[%emt 0:00:06]} Bb4 {[%emt 0:00:03]} 5. Bg5 {[%emt 0:00:16]} h6 {[%emt 0:00:05]} 6. Bxf6 {[%emt 0:00:04]} Qxf6 {[%emt 0:00:05]} 7. Qa4+ {[%emt 0:00:14]} Nc6 {[%emt 0:00:06]} 8. e3 {[%emt 0:00:03]} O-O {[%emt 0:00:09] D38: Queen's Gambit Declined: Ragozin Defence (4 Nf3 Bb4).} 9. Be2 {[%emt 0:00:09]} Bd7 {[%emt 0:01:02][%cal Oc6d4]} 10. Qc2 {[%emt 0:01:02]} (10. Qb3 $5 {[%cal Rc4d5]}) 10... dxc4 {[%emt 0:02:46] The position is equal.} 11. O-O {[%emt 0:00:13]} Na5 {[%emt 0:06:13]} 12. Ne4 {[%emt 0:00:07][%mdl 1024] White has compensation.} Qe7 {[%emt 0:00:41]} 13. Ne5 {[%emt 0:00:05]} Rfd8 {[%emt 0:06:35] [#]} 14. f4 $146 {[%emt 0:00:36]} ({Predecessor:} 14. Bxc4 Nxc4 15. Qxc4 Bd6 16. f4 Rac8 17. Rac1 Be8 18. Qb3 c6 19. Nxd6 Rxd6 20. Qa3 {1-0 (57) Goryachkina,A (2456)-Batsiashvili,N (2475) Chengdu 2015}) 14... f5 {[%emt 0:17:06]} 15. Ng3 {[%emt 0:00:08]} Bd6 {[%emt 0:05:50]} 16. Nxc4 {[%emt 0:08:16]} Nxc4 {[%emt 0:00:08]} 17. Bxc4 {[%emt 0:00:04]} Kh8 {[%emt 0:01:10]} 18. e4 {[%emt 0:07:00]} fxe4 {[%emt 0:03:09]} 19. Qxe4 {[%emt 0:07:43]} Bc6 {[%emt 0:00:05]} 20. Qg6 {[%emt 0:12:30]} Be8 {[%emt 0:07:18] This bishop pair is nice.} 21. Qe4 {[%emt 0:07:14]} Bc6 {[%emt 0:00:00]} 22. Qg6 {[%emt 0:27:28] Strongly threatening Bd3.} Be8 {[%emt 0:00:00]} 23. Qxe6 {[%emt 0:04:34]} Qxe6 {[%emt 0:00:00]} 24. Bxe6 {[%emt 0:00:02]} Be7 {[%emt 0:00:00]} (24... Bb5 $11 {should be considered.}) 25. d5 {[%emt 0:00:44]} c6 {[%emt 0:00:15]} 26. Rfd1 {[%emt 0:03:39]} cxd5 {[%emt 0:03:54]} 27. Bxd5 {[%emt 0:00:32]} ({Don't play} 27. Rxd5 Bc6 28. Rdd1 Bf6 $15) 27... Rac8 {[%emt 0:08:12]} 28. Bxb7 {[%emt 0:03:08]} Rb8 {[%emt 0:01:46]} 29. Rxd8 {[%emt 0:02:30]} Bxd8 {[%emt 0:00:04]} 30. Bd5 {[%emt 0:01:41]} Rxb2 {[%emt 0:00:14]} 31. Re1 {[%emt 0:02:48]} Bd7 {[%emt 0:07:24]} 32. Ne4 {[%emt 0:08:26]} Ba5 {[%emt 0:00:37]} 33. Rd1 {[%emt 0:02:05]} Bc7 {[%emt 0:05:29]} 34. h4 {[%emt 0:01:36]} Bg4 {[%emt 0:04:40]} 35. Rf1 {[%emt 0:02:07]} g6 {[%emt 0:00:05]} 36. Bb3 {[%emt 0:00:22]} Kg7 {[%emt 0:04:39]} 37. Nc3 {[%emt 0:00:21]} Bd8 {[%emt 0:03:31]} 38. Nd5 {[%emt 0:00:48]} Bxh4 {[%emt 0:01:03]} 39. Ne3 {[%emt 0:00:24]} Bd7 {[%emt 0:05:15]} (39... Be2 $15 40. Nc4 Rxb3 41. axb3 Bxf1 42. Kxf1 Bg3) 40. Rd1 {[%emt 0:00:24]} Bc6 {[%emt 0:02:15]} 41. Rd6 {[%emt 0:05:05]} Bf2+ {[%emt 0:05:35]} 42. Kh2 {[%emt 0:01:01]} Bxe3 {[%emt 0:00:23]} 43. Rxc6 {[%emt 0:00:02]} Bxf4+ $17 {[%emt 0:00:06][%mdl 4096] Endgame KRB-KRB} 44. Kh3 {[%emt 0:02:23]} h5 {[%emt 0:03:20] And now ...Re2 would win.} 45. g3 {[%emt 0:02:03]} Be5 {[%emt 0:03:14]} 46. Rc2 {[%emt 0:04:20] Prevents Rd2.} Rb1 {[%emt 0:00:58] aiming for ...Rg1.} 47. Re2 {[%emt 0:01:41]} Kf6 {[%emt 0:01:20]} 48. Rf2+ {[%emt 0:01:19]} Kg5 {[%emt 0:00:31]} 49. Re2 {[%emt 0:00:11]} Bc7 {[%emt 0:02:28]} 50. Rc2 {[%emt 0:01:10]} Be5 {[%emt 0:00:23] Threatens to win with ...Rg1.} 51. Re2 $1 {[%emt 0:00:16]} Kf6 {[%emt 0:02:56]} (51... Bb8 $17) 52. Rf2+ $1 $11 {[%emt 0:00:20]} Kg7 {[%emt 0:01:39]} ({Black should try} 52... Ke7 $11) 53. Re2 $1 $17 {[%emt 0:00:37]} Bf6 {[%emt 0:00:45]} 54. Kg2 {[%emt 0:02:14]} g5 {[%emt 0:01:18]} 55. Rc2 {[%emt 0:02:00]} Be5 {[%emt 0:05:47] Prevents Rc7+.} 56. Rc5 {[%emt 0:02:18]} Rb2+ {[%emt 0:01:01]} 57. Rc2 {[%emt 0:00:05]} Rb1 {[%emt 0:00:32]} 58. Rc5 $1 {[%emt 0:00:05] [#]} Rb2+ {[%emt 0:01:40] Weighted Error Value: White=0.06 (flawless) /Black=0.11 (very precise)} (58... Rg1+ $1 $17 59. Kxg1 Bd4+ 60. Kf1 Bxc5) 1/2-1/2